bitfinex/quotes_ETHUSD_20250929
["timestamp","ask_amount","ask_price","bid_price","bid_amount"]
[1759130690730,8.06773034,4104.0,4103.9,2.67130654]
[1759130691110,11.12173034,4104.0,4103.9,3.11270654]
[1759130691899,11.0239797,4104.0,4103.9,3.11270654]
[1759130692118,10.90084009,4104.0,4103.9,3.11270654]
[1759130692318,10.90084009,4104.0,4103.9,2.43870654]
[1759130692603,10.90084009,4104.0,4103.9,3.11270654]
[1759130693932,10.90084009,4104.0,4103.9,17.61270654]
[1759130694102,10.90084009,4104.0,4103.9,14.502]
[1759130694301,10.90184009,4104.0,4103.9,16.93870654]
[1759130694706,10.90184009,4104.0,4103.9,14.502]
[1759130695634,10.90184009,4104.0,4103.9,17.61270654]
[1759130696323,11.66426278,4104.0,4103.9,17.61270654]
[1759130697030,11.66426278,4104.0,4103.9,15.176]
[1759130698099,8.61026278,4104.0,4103.9,14.7346]
[1759130698332,11.66426278,4104.0,4103.9,14.7346]
[1759130698918,13.12926278,4104.0,4103.9,14.7346]
[1759130699107,11.66426278,4104.0,4103.9,14.7346]
[1759130699833,11.66346278,4104.0,4103.9,14.7346]
[1759130700150,11.66346278,4104.0,4103.9,14.502]
[1759130700504,13.14535543,4104.0,4103.9,14.502]
[1759130700836,13.74045543,4104.0,4103.9,0.002]
[1759130701038,16.1771026,4104.0,4103.9,0.002]
[1759130702000,13.59415543,4104.0,4103.9,0.002]
[1759130702829,14.12270256,4104.0,4103.9,0.002]
[1759130703534,13.97640256,4104.0,4103.9,0.002]
[1759130704333,13.52760256,4104.0,4103.9,0.002]
[1759130704525,13.97640256,4104.0,4103.9,0.002]
[1759130706230,13.52760256,4104.0,4103.9,0.002]
[1759130710121,13.97310256,4104.0,4103.9,0.002]
[1759130710319,18.22124973,4104.0,4103.9,0.002]
[1759130710519,1.465,4103.7,4103.5,0.002]
[1759130710735,12.10876278,4103.6,4103.5,0.002]
[1759130710939,12.10876278,4103.6,4102.9,2.88898117]
[1759130710940,3.0,4103.5,4102.9,0.6915]
[1759130711180,6.90218164,4103.1,4102.9,0.002]
[1759130711427,10.74724104,4103.0,4102.9,0.002]
[1759130711629,12.18269142,4103.0,4102.9,0.002]
[1759130711846,12.28047671,4103.0,4102.9,0.002]
[1759130712345,6.90241926,4102.7,4102.1,0.002]
[1759130712550,15.56568204,4102.7,4102.4,0.002]
[1759130712717,16.18198204,4102.7,4102.4,0.002]
[1759130712921,16.44084085,4102.7,4102.4,0.002]
[1759130713733,16.82323648,4102.7,4102.4,0.002]
[1759130715065,13.76923648,4102.7,4102.4,0.002]
[1759130715361,16.82323648,4102.7,4102.4,0.002]
[1759130715562,16.67693648,4102.7,4102.4,0.002]
[1759130716754,13.62293648,4102.7,4102.4,0.002]
[1759130716955,16.67693648,4102.7,4102.4,0.002]
[1759130717531,13.76951722,4102.7,4102.4,0.002]
[1759130717842,13.76951722,4102.7,4102.6,0.2364]
[1759130718691,13.15293648,4102.7,4102.6,0.2364]
[1759130718859,13.76951722,4102.7,4102.6,0.2364]
[1759130719657,7.5436737,4102.7,4102.6,0.002]
[1759130719966,3.43639563,4102.7,4102.6,0.701]
[1759130720480,12.04565841,4102.7,4102.6,0.002]
[1759130720638,12.04565841,4102.7,4102.6,0.2364]
[1759130720834,12.04565841,4102.7,4102.6,0.701]
[1759130721970,12.04565841,4102.7,4102.6,0.2364]
[1759130724575,12.04485841,4102.7,4102.6,0.2364]
[1759130725563,16.09406481,4102.7,4102.6,0.002]
[1759130726475,13.65664555,4102.7,4102.6,0.002]
[1759130726674,16.09406481,4102.7,4102.6,0.002]
[1759130726880,16.56406481,4102.7,4102.6,0.002]
[1759130728568,16.09406481,4102.7,4102.6,0.002]
[1759130728968,16.56406481,4102.7,4102.6,0.002]
[1759130729355,16.09406481,4102.7,4102.6,0.002]
[1759130729587,16.71036481,4102.7,4102.6,0.002]
[1759130729802,16.56406481,4102.7,4102.6,0.002]
[1759130730084,16.71036481,4102.7,4102.6,0.002]
[1759130731355,16.56406481,4102.7,4102.6,0.002]
[1759130733687,18.02906481,4102.7,4102.6,0.002]
[1759130738910,17.55906481,4102.7,4102.6,0.002]
[1759130742517,17.55906481,4102.7,4102.6,0.244]
[1759130742824,17.55906481,4102.7,4102.6,0.002]
[1759130743207,17.55906481,4102.7,4102.6,0.244]
[1759130744119,18.16866481,4102.7,4102.6,0.002]
[1759130744482,18.02236481,4102.7,4102.6,0.002]
[1759130745904,17.55906481,4102.7,4102.6,0.002]
[1759130746707,15.12164555,4102.7,4102.6,0.002]
[1759130746897,17.55906481,4102.7,4102.6,0.002]
[1759130748524,17.56006481,4102.7,4102.6,0.002]
[1759130749707,17.55926481,4102.7,4102.6,0.002]
[1759130750828,18.02256481,4102.7,4102.6,0.002]
[1759130752598,18.26456481,4102.7,4102.6,0.002]
[1759130753122,25.24470318,4102.7,4102.6,0.002]
[1759130753516,24.78140318,4102.7,4102.6,0.002]
[1759130753729,26.18300318,4102.7,4102.6,0.002]
[1759130756429,26.56541339,4102.7,4102.6,0.002]
[1759130757318,25.95581339,4102.7,4102.6,0.002]
[1759130757525,22.53246439,4102.7,4102.6,0.002]
[1759130757719,19.05817939,4102.7,4102.6,0.002]
[1759130758316,18.30129451,4102.7,4102.6,0.002]
[1759130759203,17.83799451,4102.7,4102.6,0.002]
[1759130759916,18.30129451,4102.7,4102.6,0.002]
[1759130760927,17.9188843,4102.7,4102.6,0.002]
[1759130762017,17.4555843,4102.7,4102.6,0.002]
[1759130763543,17.4555843,4102.7,4102.6,0.244]
[1759130764051,17.04598021,4102.7,4102.6,0.7165]
[1759130764820,17.04598021,4102.7,4102.6,0.244]
[1759130766730,13.99198021,4102.7,4102.6,0.7165]
[1759130766926,15.43419307,4102.7,4102.6,0.7165]
[1759130767457,15.43419307,4102.7,4102.6,0.244]
[1759130769547,15.43419307,4102.7,4102.6,0.7048]
[1759130769745,15.43419307,4102.7,4102.6,0.002]
[1759130770034,15.43419307,4102.7,4102.6,0.7079]
[1759130771255,17.22144339,4102.7,4102.6,0.7079]
[1759130771872,17.22144339,4102.7,4102.6,0.2471]
[1759130773066,17.22044339,4102.7,4102.6,0.2471]
[1759130773846,14.16744339,4102.7,4102.6,0.2471]
[1759130774179,17.22044339,4102.7,4102.6,0.2471]
[1759130774477,17.22044339,4102.7,4102.6,0.7055]
[1759130774678,17.21964339,4102.7,4102.6,0.7055]
[1759130775051,17.21964339,4102.7,4102.6,0.2471]
[1759130775450,17.21964339,4102.7,4102.6,0.002]
[1759130776996,17.21964339,4102.7,4102.6,0.2357]
[1759130777197,14.16664339,4102.7,4102.6,0.2357]
[1759130777350,17.21964339,4102.7,4102.6,0.2357]
[1759130777550,17.21964339,4102.7,4102.6,0.6941]
[1759130777750,15.43239307,4102.7,4102.6,0.6941]
[1759130778178,15.43239307,4102.7,4102.6,0.2357]
[1759130778692,12.37939307,4102.7,4102.6,0.2357]
[1759130778847,15.43239307,4102.7,4102.6,0.002]
[1759130781958,15.43239307,4102.7,4102.6,0.2357]
[1759130782498,15.43239307,4102.7,4102.6,0.002]
[1759130782698,15.43239307,4102.7,4102.6,0.2357]
[1759130784988,12.37939307,4102.7,4102.6,0.2357]
[1759130785202,15.43239307,4102.7,4102.6,0.2357]
[1759130785893,15.43239307,4102.7,4102.6,0.6941]
[1759130786377,15.43239307,4102.7,4102.6,0.2357]
[1759130787776,15.43239307,4102.7,4102.6,0.002]
[1759130787975,17.21946339,4102.7,4102.6,0.002]
[1759130788507,17.21946339,4102.7,4102.6,0.2357]
[1759130790408,17.21946339,4102.7,4102.6,0.002]
[1759130792776,17.21946339,4102.7,4102.6,0.2357]
[1759130792976,9.94197381,4102.7,4102.6,0.002]
[1759130793276,7.9063779,4102.7,4102.6,0.6941]
[1759130793607,0.001,4102.7,4102.6,17.63157867]
[1759130793971,3.053,4102.7,4102.6,17.63157867]
[1759130795124,3.053,4102.7,4102.6,15.1941]
[1759130795307,3.053,4102.7,4102.6,0.2357]
[1759130795308,6.053,4102.7,4102.6,0.2357]
[1759130795495,8.49041926,4102.7,4102.6,0.002]
[1759130796574,6.053,4102.7,4102.6,0.002]
[1759130796779,8.49041926,4102.7,4102.6,0.002]
[1759130798011,5.43841926,4102.7,4102.6,0.2357]
[1759130798212,6.053,4102.7,4102.6,0.6941]
[1759130798935,6.053,4102.7,4102.6,0.2357]
[1759130799529,8.48961926,4102.7,4102.6,0.2357]
[1759130801540,6.0522,4102.7,4102.6,0.2357]
[1759130804610,8.48961926,4102.7,4102.6,0.2357]
[1759130804824,6.0522,4102.7,4102.6,0.2357]
[1759130805246,6.0522,4102.7,4102.6,0.6832]
[1759130806239,6.0522,4102.7,4102.6,0.2357]
[1759130807456,6.0522,4102.7,4102.6,0.6832]
[1759130807753,6.0522,4102.7,4102.6,0.2357]
[1759130808251,3.0002,4102.7,4102.6,0.6747]
[1759130808453,6.1738,4102.7,4102.6,3.11217867]
[1759130808742,6.1738,4102.7,4102.6,3.66978359]
[1759130811120,6.1738,4102.7,4102.6,18.16978359]
[1759130814148,6.1728,4102.7,4102.6,3.66978359]
[1759130814625,6.1728,4102.7,4102.6,18.16978359]
[1759130815148,3.1728,4102.7,4102.6,18.16978359]
[1759130817654,3.1728,4102.7,4102.6,3.66978359]
[1759130818149,3.1728,4102.7,4102.6,18.16978359]
[1759130818529,0.1218,4102.7,4102.6,18.16978359]
[1759130818729,3.1728,4102.7,4102.6,18.16978359]
[1759130820051,3.1728,4102.7,4102.6,15.05960492]
[1759130820252,3.1728,4102.7,4102.6,14.502]
[1759130820429,6.1728,4102.7,4102.6,0.002]
[1759130821970,3.1218,4102.7,4102.6,2.43947867]
[1759130822149,3.1218,4102.7,4102.6,3.11217867]
[1759130822470,6.1728,4102.7,4102.6,3.11217867]
[1759130822758,3.1218,4102.7,4102.6,3.66978989]
[1759130822920,6.1728,4102.7,4102.6,3.66978989]
[1759130823656,3.1218,4102.7,4102.6,3.66978989]
[1759130823892,6.1728,4102.7,4102.6,3.66978989]
[1759130824427,6.172,4102.7,4102.6,3.66978989]
[1759130824628,3.121,4102.7,4102.6,3.66978989]
[1759130824928,6.172,4102.7,4102.6,3.66978989]
[1759130825555,3.121,4102.7,4102.6,18.16978989]
[1759130825854,6.172,4102.7,4102.6,18.16978989]
[1759130828659,3.121,4102.7,4102.6,18.16978989]
[1759130828966,6.051,4102.7,4102.6,18.16978989]
[1759130831468,6.052,4102.7,4102.6,18.16978989]
[1759130833274,3.001,4102.7,4102.6,18.16978989]
[1759130833473,6.052,4102.7,4102.6,18.16978989]
[1759130836845,3.001,4102.7,4102.6,18.16978989]
[1759130837066,6.051,4102.7,4102.6,18.16978989]
[1759130837245,6.051,4102.7,4102.6,17.49708989]
[1759130837654,6.051,4102.7,4102.6,17.72288989]
[1759130839882,6.051,4102.7,4102.6,18.17018989]
[1759130841080,6.051,4102.7,4102.6,17.72288989]
[1759130841286,6.051,4102.7,4102.6,17.16527867]
[1759130842283,3.001,4102.7,4102.6,17.16527867]
[1759130842483,6.051,4102.7,4102.6,17.16527867]
[1759130844882,3.001,4102.7,4102.6,17.16527867]
[1759130845180,6.051,4102.7,4102.6,17.16527867]
[1759130845560,6.051,4102.7,4102.6,16.93947867]
[1759130848478,0.001,4102.7,4102.6,18.2076945]
[1759130848889,0.001,4102.9,4102.7,3.22941926]
[1759130849077,0.001,4102.9,4102.8,6.30373344]
[1759130849399,0.001,4102.9,4102.8,7.05018779]
[1759130849560,0.0002,4102.9,4102.8,22.55866008]
[1759130858602,0.0002,4102.9,4102.8,22.68026008]
[1759130859739,0.5874,4102.9,4102.8,16.93735985]
[1759130860037,0.5874,4102.9,4102.6,0.002]
[1759130860231,8.61170835,4102.8,4102.6,0.002]
[1759130860394,3.0,4102.7,4102.6,0.002]
[1759130860597,6.6372,4102.7,4102.6,0.002]
[1759130860811,6.6372,4102.7,4102.6,2.43947867]
[1759130861227,3.05,4102.7,4102.6,0.002]
[1759130861455,3.6372,4102.7,4102.6,2.43947867]
[1759130861900,3.6372,4102.7,4102.6,0.002]
[1759130864103,3.6372,4102.7,4102.6,14.502]
[1759130867646,3.4899,4102.7,4102.6,16.93947867]
[1759130868314,3.4899,4102.7,4102.6,14.502]
[1759130869326,6.6372,4102.7,4102.6,14.502]
[1759130870017,6.4899,4102.7,4102.6,14.502]
[1759130870456,6.6372,4102.7,4102.6,14.502]
[1759130870822,6.6372,4102.7,4102.6,0.002]
[1759130871640,8.11800238,4102.7,4102.6,0.002]
[1759130874472,6.6364,4102.7,4102.6,0.002]
[1759130874985,6.4891,4102.7,4102.6,0.002]
[1759130875176,6.6364,4102.7,4102.6,0.002]
[1759130876250,3.0,4102.7,4102.6,0.002]
[1759130876450,6.051,4102.7,4102.6,3.12607867]
[1759130876656,3.0,4102.7,4102.6,2.46385345]
[1759130876853,3.0,4102.7,4102.6,3.64079642]
[1759130877169,0.0002,4102.9,4102.8,2.43735985]
[1759130877351,0.0002,4102.9,4102.8,2.46173344]
[1759130877551,0.0002,4102.9,4102.8,3.14833344]
[1759130877893,0.0002,4102.9,4102.8,17.64833344]
[1759130878091,0.0002,4102.9,4102.8,19.68176942]
[1759130879278,0.0002,4102.9,4102.8,22.73376942]
[1759130880064,0.0002,4102.9,4102.8,18.99516942]
[1759130880262,0.0002,4102.9,4102.8,16.93735985]
[1759130880983,0.0002,4102.9,4102.8,17.18515985]
[1759130881868,0.0002,4102.9,4102.8,16.93735985]
[1759130883775,0.0002,4102.9,4102.8,14.5]
[1759130883998,0.0002,4102.9,4102.6,0.49234297]
[1759130883999,0.5874,4102.9,4102.6,0.002]
[1759130884179,4.84733052,4102.7,4102.6,0.002]
[1759130884584,5.28723052,4102.7,4102.6,0.002]
[1759130885490,4.84733052,4102.7,4102.6,0.002]
[1759130885695,4.84733052,4102.7,4102.6,2.4394776]
[1759130886663,7.89833052,4102.7,4102.6,2.4394776]
[1759130887092,8.01993052,4102.7,4102.6,2.4394776]
[1759130889165,8.01993052,4102.7,4102.6,16.9394776]
[1759130890992,4.96893052,4102.7,4102.6,16.9394776]
[1759130891166,8.01893052,4102.7,4102.6,17.1824776]
[1759130891760,4.96893052,4102.7,4102.6,16.9394776]
[1759130891965,0.0002,4102.9,4102.6,16.9394776]
[1759130891966,0.0002,4102.9,4102.8,2.43735985]
[1759130892167,0.0002,4102.9,4102.8,2.46173344]
[1759130892361,0.0002,4102.9,4102.8,3.14485985]
[1759130892863,0.0002,4102.9,4102.8,17.64485985]
[1759130894804,0.0002,4102.9,4102.8,14.5]
[1759130894805,4.84753052,4102.9,4102.8,14.5]
[1759130895103,8.50823052,4102.9,4102.7,2.43740106]
[1759130895267,0.4624,4102.8,4102.7,2.43740106]
[1759130895470,0.4624,4102.8,4102.7,16.93740106]
[1759130895775,7.89853052,4102.9,4102.7,14.5]
[1759130895973,7.89853052,4102.9,4102.7,16.93739512]
[1759130896302,0.4624,4102.8,4102.7,14.5]
[1759130897791,0.4634,4102.8,4102.7,14.5]
[1759130898609,0.001,4102.8,4102.7,14.5]
[1759130898925,0.001,4102.8,4102.7,16.93741926]
[1759130899112,0.001,4102.8,4102.7,14.5]
[1759130899422,0.4626,4102.8,4102.7,14.5]
[1759130899791,0.0002,4102.8,4102.7,14.5]
[1759130900520,0.0002,4102.8,4102.7,17.63761926]
[1759130900818,4.84753052,4102.8,4102.7,17.18331926]
[1759130901201,7.89753052,4102.8,4102.7,17.18331926]
[1759130901724,7.89753052,4102.8,4102.7,16.93741926]
[1759130902605,7.89753052,4102.8,4102.7,14.5]
[1759130902815,3.0502,4102.8,4102.7,16.93741926]
[1759130903018,7.89753052,4102.8,4102.7,19.64553431]
[1759130903217,4.84753052,4102.8,4102.7,16.93741926]
[1759130903421,7.89753052,4102.8,4102.7,16.93741926]
[1759130903624,7.89753052,4102.8,4102.7,2.43741926]
[1759130904201,7.89753052,4102.8,4102.7,16.93741926]
[1759130906912,7.89753052,4102.8,4102.7,14.5]
[1759130907112,8.35993052,4102.8,4102.6,0.002]
[1759130907318,7.89753052,4102.8,4102.6,0.002]
[1759130907521,3.6097,4102.7,4102.6,0.002]
[1759130910847,6.6597,4102.7,4102.6,0.002]
[1759130911223,9.09711926,4102.7,4102.6,0.002]
[1759130912365,6.6597,4102.7,4102.6,0.002]
[1759130912925,9.09711926,4102.7,4102.6,0.002]
[1759130913263,10.886055,4102.7,4102.6,0.002]
[1759130914031,8.44863574,4102.7,4102.6,0.002]
[1759130915366,7.83893574,4102.7,4102.6,0.002]
[1759130915530,10.89733052,4102.7,4102.6,0.002]
[1759130920040,11.32983052,4102.7,4102.6,0.002]
[1759130920246,11.47713052,4102.7,4102.6,0.002]
[1759130920753,11.32983052,4102.7,4102.6,0.002]
[1759130923992,10.89733052,4102.7,4102.6,0.002]
[1759130924345,10.89653052,4102.7,4102.6,0.002]
[1759130926153,13.91374978,4102.7,4102.6,0.002]
[1759130926463,13.16204245,4102.7,4102.6,0.002]
[1759130926655,13.01474245,4102.7,4102.6,0.002]
[1759130927061,10.89653052,4102.7,4102.6,0.002]
[1759130927267,6.0492,4102.7,4102.6,0.2315]
[1759130927475,6.0492,4102.7,4102.6,0.6847]
[1759130927684,6.0492,4102.7,4102.6,3.14655345]
[1759130928290,10.89653052,4102.7,4102.6,0.70907478]
[1759130929190,3.0,4102.7,4102.6,0.70907478]
[1759130929392,6.05,4102.7,4102.6,3.14655345]
[1759130930387,6.05,4102.7,4102.6,3.12217867]
[1759130931087,6.05,4102.7,4102.6,0.6847]
[1759130931288,6.05,4102.7,4102.6,15.1847]
[1759130931788,6.05,4102.7,4102.6,17.62217867]
[1759130932973,3.0,4102.7,4102.6,17.62217867]
[1759130933172,6.05,4102.7,4102.6,17.62217867]
[1759130933399,6.05,4102.7,4102.6,15.1847]
[1759130934873,6.05,4102.7,4102.6,17.62217867]
[1759130935186,3.1218,4102.8,4102.7,2.43741926]
[1759130935402,6.1718,4102.8,4102.7,3.14449345]
[1759130937005,6.1718,4102.8,4102.7,0.6827]
[1759130937212,6.1718,4102.8,4102.6,16.93946081]
[1759130937213,6.1718,4102.8,4102.6,14.502]
[1759130937989,6.1718,4102.8,4102.6,14.7315]
[1759130938306,6.1718,4102.8,4102.6,14.502]
[1759130938504,6.1718,4102.8,4102.6,0.002]
[1759130939193,0.4325,4102.7,4102.6,0.002]
[1759130939497,3.5798,4102.7,4102.6,0.002]
[1759130940404,3.0,4102.7,4102.6,0.002]
[1759130940583,8.61417249,4102.7,4102.6,0.002]
[1759130940771,12.09667249,4102.7,4102.6,0.002]
[1759130942303,8.61417249,4102.7,4102.6,0.002]
[1759130942497,11.66417249,4102.7,4102.6,0.002]
[1759130942701,12.09667249,4102.7,4102.6,0.002]
[1759130943286,16.17404921,4102.7,4102.6,0.002]
[1759130943888,16.5564286,4102.7,4102.6,0.002]
[1759130945634,0.0002,4102.8,4102.6,0.002]
[1759130945779,3.05,4102.7,4102.6,3.12213896]
[1759130946100,3.05,4102.7,4102.6,14.7315]
[1759130946474,3.05,4102.7,4102.6,17.16897867]
[1759130946676,3.05,4102.7,4102.6,17.62217867]
[1759130947472,3.0002,4102.8,4102.6,17.62217867]
[1759130947681,3.0002,4102.8,4102.7,3.14449345]
[1759130947933,6.0502,4102.8,4102.7,3.14449345]
[1759130949324,6.0494,4102.8,4102.7,3.14449345]
[1759130950346,6.0504,4102.8,4102.7,3.14449345]
[1759130951046,6.0504,4102.8,4102.7,17.64449345]
[1759130951250,6.0504,4102.8,4102.7,17.62011926]
[1759130953552,6.0504,4102.8,4102.7,17.61151926]
[1759130954954,6.0494,4102.8,4102.7,17.61151926]
[1759130955248,6.0494,4102.8,4102.7,17.17241926]
[1759130955753,6.0494,4102.8,4102.7,2.67241926]
[1759130956251,6.0494,4102.8,4102.7,17.17241926]
[1759130956457,6.0494,4102.8,4102.7,17.61151926]
[1759130959255,6.0494,4102.8,4102.7,3.11151926]
[1759130959849,6.0494,4102.8,4102.7,17.61151926]
[1759130961978,0.001,4102.8,4102.7,17.61151926]
[1759130962282,0.001,4102.8,4102.7,19.61682399]
[1759130962553,0.0002,4102.9,4102.7,19.61682399]
[1759130962554,0.0002,4102.9,4102.8,2.43735985]
[1759130962747,0.0002,4102.9,4102.8,6.18483344]
[1759130962951,0.0002,4102.9,4102.8,6.16045985]
[1759130963156,0.0002,4102.9,4102.8,8.6786221]
[1759130963864,0.0002,4102.9,4102.8,20.66045985]
[1759130964242,0.0002,4102.9,4102.8,21.45245985]
[1759130967463,0.0002,4102.9,4102.8,21.45445985]
[1759130969687,1e-08,4103.4,4103.1,0.792]
[1759130969866,1e-08,4103.4,4103.3,3.22906285]
[1759130970174,1e-08,4103.4,4103.3,3.85930626]
[1759130970347,1e-08,4103.4,4103.3,18.45701607]
[1759130970553,1e-08,4103.4,4103.3,19.13111607]
[1759130972273,1e-08,4103.4,4103.3,18.81361607]
[1759130972686,1e-08,4103.4,4103.3,19.25271607]
[1759130974446,0.00020001,4103.6,4103.5,2.43694407]
[1759130974793,0.00020001,4103.6,4103.5,8.02747576]
[1759130975091,0.00020001,4103.6,4103.5,23.17720632]
[1759130977856,0.00020001,4103.6,4103.5,22.73810632]
[1759130978885,0.00020001,4103.6,4103.5,22.50310632]
[1759130979082,0.00020001,4103.6,4103.5,19.45510632]
[1759130979083,0.43840001,4103.6,4103.5,19.45510632]
[1759130979280,0.58670001,4103.6,4103.5,17.03466581]
[1759130982584,6.2008725,4103.6,4103.5,17.03466581]
[1759130982793,6.2008725,4103.6,4103.5,16.93694407]
[1759130985783,6.2008725,4103.6,4103.5,14.5]
[1759130985995,6.2008725,4103.6,4103.5,16.93894407]
[1759130986585,6.2008725,4103.6,4103.5,14.502]
[1759130986809,6.2008725,4103.6,4103.5,16.93894407]
[1759130991315,6.2008725,4103.6,4103.5,2.43894407]
[1759130991622,6.0525725,4103.6,4103.5,2.43894407]
[1759130991821,6.0525725,4103.6,4103.5,16.93894407]
[1759130994733,6.2008725,4103.6,4103.5,16.93894407]
[1759130995100,6.2008725,4103.6,4103.5,2.43894407]
[1759130995731,6.2008725,4103.6,4103.5,16.93894407]
[1759130996334,6.0525725,4103.6,4103.5,16.93894407]
[1759130997431,6.0525725,4103.6,4103.5,14.502]
[1759130997604,6.2008725,4103.6,4103.5,14.502]
[1759130997932,6.2008725,4103.6,4103.5,16.93894407]
[1759130998133,6.0525725,4103.6,4103.5,16.93894407]
[1759130999335,6.0517725,4103.6,4103.5,16.93894407]
[1759131000749,5.61417249,4103.6,4103.5,2.43894407]
[1759131001235,5.61417249,4103.6,4103.0,2.56080615]
[1759131001236,10.07924974,4103.6,4103.0,0.1236]
[1759131001411,5.61417249,4103.1,4103.0,0.002]
[1759131001613,8.66217249,4103.1,4103.0,0.002]
[1759131001819,9.24867249,4103.1,4103.0,0.002]
[1759131002312,8.33625298,4103.1,4103.0,2.43924104]
[1759131002518,0.1216,4103.3,4103.0,1.96423829]
[1759131002845,4.85005298,4103.1,4103.0,4.40147933]
[1759131003044,4.85005298,4103.1,4103.0,2.43924104]
[1759131003241,4.85005298,4103.1,4103.0,17.59754104]
[1759131005342,4.85005298,4103.1,4103.0,17.16624104]
[1759131006140,4.85005298,4103.1,4103.0,16.93924104]
[1759131006344,4.85005298,4103.1,4103.0,14.502]
[1759131006547,4.85005298,4103.1,4103.0,16.93924104]
[1759131007049,4.85005298,4103.1,4103.0,17.59754104]
[1759131008353,4.85005298,4103.1,4103.0,19.91819087]
[1759131012960,0.1226,4103.6,4103.5,2.43694407]
[1759131013259,0.001,4103.6,4103.5,2.43694407]
[1759131013425,0.001,4103.6,4103.5,3.16341351]
[1759131013625,0.001,4103.6,4103.5,20.71141351]
[1759131013856,0.001,4103.6,4103.5,23.0140475]
[1759131014738,0.001,4103.6,4103.5,23.90375325]
[1759131015963,0.001,4103.6,4103.5,23.11175325]
[1759131016183,0.001,4104.1,4103.5,23.11175325]
[1759131016388,7.13,4108.7,4103.5,23.11175325]
[1759131016389,0.463,4107.8,4105.6,3.0]
[1759131016532,0.463,4107.6,4107.4,2.43460455]
[1759131016733,0.463,4107.6,4107.5,14.5243457]
[1759131017039,4.85005298,4109.0,4107.5,14.5]
[1759131017040,4.85005298,4108.1,4107.5,14.5]
[1759131017253,7.94005298,4108.1,4108.0,2.43427458]
[1759131017452,4.85005298,4108.1,4108.0,0.02434274]
[1759131017759,5.31305298,4108.1,4107.5,2.4345709]
[1759131017961,5.31305298,4108.1,4106.7,0.49818003]
[1759131017962,4.85005298,4107.6,4107.2,2.43472537]
[1759131018262,4.85005298,4107.6,4106.4,0.73233695]
[1759131018263,4.85005298,4107.3,4106.4,3.093]
[1759131018444,4.85005298,4106.7,4106.6,2.43510446]
[1759131018639,4.85005298,4106.7,4106.6,16.93510446]
[1759131020068,4.85005298,4106.8,4106.6,14.5]
[1759131020249,0.463,4107.2,4106.8,2.43497825]
[1759131020562,4.85005298,4106.9,4106.8,2.4349312]
[1759131021161,4.85005298,4106.9,4106.6,14.5]
[1759131021366,5.31305298,4106.9,4106.7,2.43498837]
[1759131021575,5.31305298,4106.9,4106.6,17.591]
[1759131021875,5.31305298,4106.9,4106.8,2.43498587]
[1759131022262,7.94105298,4106.9,4106.6,14.5]
[1759131022430,7.94105298,4106.9,4106.6,16.93508995]
[1759131022639,0.463,4106.8,4106.6,16.93508995]
[1759131022832,3.463,4106.8,4106.6,14.5]
[1759131023040,0.463,4106.7,4106.6,14.5]
[1759131023445,3.0,4106.8,4106.6,16.93510446]
[1759131023845,3.463,4106.8,4106.7,2.43504517]
[1759131024046,3.0,4106.8,4106.7,2.43504517]
[1759131024262,2.9992,4106.8,4106.7,2.43504517]
[1759131024488,2.9992,4106.8,4106.6,14.5]
[1759131024688,3.4622,4106.8,4106.6,16.93507969]
[1759131026160,3.4622,4106.8,4106.7,2.43504517]
[1759131026368,3.4622,4106.8,4106.6,16.93509418]
[1759131026904,0.2719,4107.2,4106.7,5.79149562]
[1759131026905,0.001,4107.2,4106.7,5.79149562]
[1759131027052,0.001,4107.2,4106.7,6.22514517]
[1759131027260,0.001,4107.2,4106.8,0.7021]
[1759131027555,0.001,4107.2,4107.0,2.43486729]
[1759131027756,0.001,4107.2,4107.1,5.52780801]
[1759131027987,0.001,4107.2,4107.1,6.22990801]
[1759131028346,0.001,4107.2,4107.1,20.72990801]
[1759131028951,0.001,4107.2,4107.1,21.04480325]
[1759131030585,0.001,4107.2,4107.1,16.93480801]
[1759131030786,0.464,4107.2,4107.1,16.93480801]
[1759131031080,0.001,4107.2,4107.1,16.93480801]
[1759131033382,3.464,4107.2,4107.1,14.5]
[1759131033551,3.6133,4107.2,4107.1,14.5]
[1759131033886,3.464,4107.2,4107.1,14.5]
[1759131034052,6.7033,4107.2,4107.1,14.5]
[1759131034255,7.8439053,4107.2,4107.1,14.5]
[1759131035461,6.7033,4107.2,4107.1,14.5]
[1759131036851,6.8249,4107.2,4107.1,14.5]
[1759131038300,9.25964873,4107.2,4107.1,14.5]
[1759131038983,9.25964873,4107.2,4106.4,2.43521732]
[1759131039191,4.85005298,4106.5,4106.4,2.43521732]
[1759131039368,7.93805298,4106.5,4106.4,2.43521732]
[1759131039567,7.93805298,4106.5,4106.4,16.93521732]
[1759131040798,7.93805298,4106.5,4106.4,17.18271732]
[1759131041003,4.85005298,4106.5,4106.4,17.18271732]
[1759131041897,4.85005298,4106.5,4106.4,14.7475]
[1759131042077,4.85005298,4106.5,4106.4,16.93522306]
[1759131042273,4.85005298,4106.5,4106.4,14.5]
[1759131042462,4.85005298,4106.5,4106.4,16.93522306]
[1759131043884,4.85005298,4106.5,4106.4,14.5]
[1759131044470,4.85005298,4106.5,4106.4,16.93522306]
[1759131045568,4.85005298,4106.5,4106.4,17.18272306]
[1759131046604,4.85005298,4106.5,4106.4,17.62472306]
[1759131046808,3.1503,4107.2,4106.4,20.43488935]
[1759131046809,0.001,4107.2,4106.4,20.43488935]
[1759131046990,0.001,4107.2,4107.1,2.43480801]
[1759131047505,0.001,4107.2,4107.1,17.62430801]
[1759131049355,0.0002,4107.2,4107.1,17.62430801]
[1759131049816,0.0002,4107.2,4107.1,19.93952741]
[1759131054246,0.0002,4107.2,4107.1,19.49752741]
[1759131054552,0.0002,4107.2,4107.1,19.93952741]
[1759131055846,0.0002,4107.2,4107.1,19.49752741]